fUSD/lending_fUSD_20250305
["ID","MTS","AMOUNT","RATE_DAILY","PERIOD"]
[355489496,1741201843653,-502.44179378,0.00010989,2]
[355489497,1741201843663,-819.04,0.00010989,2]
[355489498,1741201843673,-1353.65,0.00010989,2]
[355489499,1741201843683,-502.67605693,0.00010989,2]
[355489500,1741201843692,-500.0,0.00010989,2]
[355489501,1741201843702,-3218.89,0.00010989,2]
[355489502,1741201843715,-737.99,0.00010989,2]
[355489503,1741201843725,-500.0,0.00010989,2]
[355489504,1741201843735,-500.0,0.00010989,2]
[355489505,1741201843745,-500.0,0.00010989,2]
[355489506,1741201843755,-509.04077139,0.00010989,2]
[355489507,1741201843764,-500.0,0.00010989,2]
[355489508,1741201843775,-813.44,0.00010989,2]
[355489509,1741201843785,-500.0,0.00010989,2]
[355489510,1741201843794,-1116.33,0.00010989,2]
[355489511,1741201843804,-500.0,0.00010989,2]
[355489512,1741201843814,-500.0,0.00010989,2]
[355489513,1741201843824,-520.3513902,0.00010989,2]
[355489514,1741201843833,-941.26,0.00010989,2]
[355489515,1741201843843,-832.25,0.00010989,2]
[355489516,1741201843854,-828.2,0.00010989,2]
[355489517,1741201843864,-776.13,0.00010989,2]
[355489518,1741201843873,-500.0,0.00010989,2]
[355489519,1741201843883,-500.0,0.00010989,2]
[355489520,1741201843892,-500.0,0.00010989,2]
[355489521,1741201843902,-517.4610759,0.00010989,2]
[355489522,1741201843911,-601.17,0.00010989,2]
[355489523,1741201843921,-915.94,0.00010989,2]
[355489524,1741201843930,-505.60346787,0.00010989,2]
[355489525,1741201843940,-501.86437434,0.00010989,2]
[355489526,1741201843949,-1104.86,0.00010989,2]
[355489527,1741201843962,-1189.88,0.00010989,2]
[355489528,1741201843972,-903.23,0.00010989,2]
[355489529,1741201843981,-500.0,0.00010989,2]
[355489530,1741201843991,-500.0,0.00010989,2]
[355489531,1741201844000,-582.82,0.00010989,2]
[355489532,1741201844009,-500.0,0.00010989,2]
[355489533,1741201844019,-500.0,0.00010989,2]
[355489534,1741201844028,-500.0,0.00010989,2]
[355489535,1741201844038,-503.9957699,0.00010989,2]
[355489536,1741201844047,-500.0,0.00010989,2]
[355489537,1741201844057,-546.36,0.00010989,2]
[355489538,1741201844066,-762.55,0.00010989,2]
[355489539,1741201844076,-676.18,0.00010989,2]
[355489540,1741201844085,-510.10950293,0.00010989,2]
[355489541,1741201844094,-767.97,0.00010989,2]
[355489542,1741201844105,-509.28483848,0.00010989,2]
[355489543,1741201844114,-675.42,0.00010989,2]
[355489544,1741201844123,-500.0,0.00010989,2]
[355489545,1741201844133,-2059.57,0.00010989,2]
[355489546,1741201844143,-990.66,0.00010989,2]
[355489547,1741201844153,-500.0,0.00010989,2]
[355489548,1741201844162,-922.25,0.00010989,2]
[355489549,1741201844171,-500.0,0.00010989,2]
[355489550,1741201844181,-500.0,0.00010989,2]
[355489551,1741201844190,-598.68,0.00010989,2]
[355489552,1741201844199,-513.58455024,0.00010989,2]
[355489553,1741201844211,-500.0,0.00010989,2]
[355489554,1741201844220,-500.0,0.00010989,2]
[355489555,1741201844230,-500.0,0.00010989,2]
[355489556,1741201844239,-500.0,0.00010989,2]
[355489557,1741201844248,-1110.79,0.00010989,2]
[355489558,1741201844258,-500.0,0.00010989,2]
[355489559,1741201844267,-500.0,0.00010989,2]
[355489560,1741201844276,-494.58618056,0.00010989,2]
[355489561,1741201844285,-1490.86,0.00010989,2]
[355489562,1741201844294,-500.0,0.0001099,2]
[355489563,1741201844303,-500.0,0.0001099,2]
[355489564,1741201844312,-500.0,0.0001099,2]
[355489565,1741201844322,-500.0,0.0001099,2]
[355489566,1741201844331,-604.54621758,0.0001099,2]
[355489567,1741201844339,-500.0,0.0001099,2]
[355489568,1741201844349,-1030.6,0.0001099,2]
[355489569,1741201844358,-1003.81,0.0001099,2]
[355489570,1741201844367,-762.9,0.0001099,2]
[355489571,1741201844376,-1110.11,0.0001099,2]
[355489572,1741201844385,-826.09,0.0001099,2]
[355489573,1741201844394,-551.04,0.0001099,2]
[355489574,1741201844404,-1242.75,0.0001099,2]
[355489575,1741201844414,-955.12,0.0001099,2]
[355489576,1741201844423,-1637.57,0.0001099,2]
[355489577,1741201844432,-638.85,0.0001099,2]
[355489578,1741201844441,-1709.22,0.0001099,2]
[355489579,1741201844450,-804.08,0.0001099,2]
[355489580,1741201844460,-1073.87,0.0001099,2]
[355489581,1741201844469,-510.15,0.0001099,2]
[355489582,1741201844478,-500.0,0.0001099,2]
[355489583,1741201844488,-1532.91,0.0001099,2]
[355489584,1741201844497,-500.0,0.0001099,2]
[355489585,1741201844507,-500.0,0.0001099,2]
[355489586,1741201844516,-1310.34,0.0001099,2]
[355489587,1741201844525,-500.0,0.0001099,2]
[355489588,1741201844535,-1513.84,0.0001099,2]
[355489589,1741201844544,-6412.41,0.0001099,2]
[355489590,1741201844553,-906.91,0.0001099,2]
[355489591,1741201844563,-1785.41,0.0001099,2]
[355489592,1741201844572,-1182.5,0.0001099,2]
[355489593,1741201844581,-536.33,0.0001099,2]
[355489594,1741201844591,-1132.74,0.0001099,2]
[355489595,1741201844602,-500.0,0.0001099,2]
[355489596,1741201844612,-1026.74,0.0001099,2]
[355489597,1741201844623,-1063.67,0.0001099,2]
[355489598,1741201844632,-1353.52,0.0001099,2]
[355489599,1741201844642,-500.0,0.0001099,2]
[355489600,1741201844651,-500.0,0.0001099,2]
[355489601,1741201844660,-500.0,0.0001099,2]
[355489602,1741201844669,-500.0,0.0001099,2]
[355489603,1741201844678,-338.08888094,0.0001099,2]
[355489604,1741201844688,-500.0,0.0001099,2]
[355489605,1741201844697,-1569.7,0.0001099,2]
[355489606,1741201844706,-3404.18,0.0001099,2]
[355489607,1741201844716,-2756.27,0.0001099,2]
[355489608,1741201844726,-16152.07786977,0.0001099,2]
[355489609,1741201845082,-350.22213023,0.0001099,2]
[355489610,1741201845091,-1512.79,0.0001099,2]
[355489611,1741201845100,-2335.41,0.0001099,2]
[355489612,1741201845109,-1636.7063901,0.0001099,2]
[355489613,1741201845120,-5276.78032935,0.0001099,2]
[355489614,1741201845131,-354.05062206,0.0001099,2]
[355489615,1741201845142,-736.80434997,0.0001099,2]
[355489616,1741201845153,-2619.15139305,0.0001099,2]
[355489617,1741201845164,-2187.7,0.0001099,2]
[355489618,1741201845181,-373.01315252,0.0001099,2]
[355489619,1741201845219,-261.9473042,0.00010988,2]
[355489623,1741201845700,-271.93229191,0.00010988,2]
[355489624,1741201845709,-41.150958,0.0001099,2]
[355489625,1741201845727,-3612.07280495,0.0001099,2]
[355489626,1741201845736,-1968.61,0.0001099,2]
[355489627,1741201845745,-611.36,0.0001099,2]
[355489628,1741201845755,-1250.37831094,0.0001099,2]
[355489629,1741201845766,-238.24168906,0.0001099,2]
[355489630,1741201845780,-3251.31,0.0001099,2]
[355489631,1741201845789,-1152.12,0.0001099,2]
[355489632,1741201845798,-500.0,0.0001099,2]
[355489633,1741201845807,-28.55448546,0.0001099,2]
[355489634,1741201845825,-3584.36551454,0.0001099,2]
[355489635,1741201845835,-812.37070958,0.00010991,2]
[355489636,1741201845846,-540.14766697,0.00010991,2]
[355489637,1741201845857,-500.0,0.00010991,2]
[355489638,1741201845868,-500.0,0.00010991,2]
[355489639,1741201845877,-500.0,0.00010991,2]
[355489640,1741201845888,-500.0,0.00010991,2]
[355489641,1741201845897,-500.0,0.00010991,2]
[355489642,1741201845907,-500.0,0.00010991,2]
[355489643,1741201845916,-504.20448681,0.00010991,2]
[355489644,1741201845926,-370.69231135,0.00010991,2]
[355489647,1741201847489,-136.33266308,0.00010991,2]
[355489648,1741201847499,-500.0,0.00010991,2]
[355489649,1741201847508,-500.0,0.00010991,2]
[355489650,1741201847517,-500.0,0.00010991,2]
[355489651,1741201847527,-244.46064505,0.00010991,2]
[355489652,1741201847538,-255.53935495,0.00010991,2]
[355489653,1741201847549,-503.8816584,0.00010991,2]
[355489654,1741201847558,-287.97898653,0.00010991,2]
[355489655,1741201847575,-212.02101347,0.00010991,2]
[355489656,1741201847585,-185.37421968,0.00010991,2]
[355489657,1741201847603,-314.62578032,0.00010991,2]
[355489658,1741201847613,-500.0,0.00010991,2]
[355489659,1741201847622,-501.76672398,0.00010991,2]
[355489660,1741201847631,-500.0,0.00010991,2]
[355489661,1741201847641,-500.0,0.00010991,2]
[355489662,1741201847650,-500.0,0.00010991,2]
[355489663,1741201847659,-506.03526493,0.00010991,2]
[355489664,1741201847668,-501.31095665,0.00010991,2]
[355489665,1741201847678,-500.0,0.00010991,2]
[355489666,1741201847687,-201.35487565,0.00010991,2]
[355489667,1741201847699,-298.64512435,0.00010991,2]
[355489668,1741201847708,-140.79387565,0.00010991,2]
[355489669,1741201847731,-359.20612435,0.00010991,2]
[355489670,1741201847741,-500.0,0.00010991,2]
[355489671,1741201847750,-500.0,0.00010991,2]
[355489672,1741201847759,-500.0,0.00010991,2]
[355489673,1741201847769,-377.42315248,0.00010991,2]
[355489674,1741201911218,165.62,0.00010188,2]
[355489675,1741201913957,1694.65837183,8.661e-05,7]
[355489676,1741201914195,251517.925453,8.661e-05,7]
[355489677,1741202116136,151.0,8.661e-05,3]
[355489678,1741202116545,151.0,9.995e-05,3]
[355489679,1741202231165,250.0,0.0001016,2]
[355489680,1741202253635,566.46,0.00010158,2]
[355489681,1741202269840,1000.0,0.00010158,2]
[355489682,1741202275773,150.0,0.0001019,2]
[355489683,1741202338557,2000.0,0.00010113,2]
[355489684,1741202414642,151.0,8.661e-05,3]
[355489685,1741202422499,167.07,0.00010075,2]
[355489686,1741202681274,452.9,0.00010088,2]
[355489687,1741202698357,1044.4,8.219e-05,2]
[355489688,1741202707022,151.0,8.661e-05,3]
[355489690,1741202821006,530.29,0.00010089,2]
[355489709,1741203007261,152.0,8.661e-05,3]
[355489715,1741203031899,-156.28,0.00010391,2]
[355489717,1741203031908,-165.62,0.00010459,2]
[355489719,1741203031918,-1044.4,0.0001048,2]
[355489720,1741203031928,-165.62,0.00010731,2]
[355489721,1741203031937,-2136.93499577,0.00010731,2]
[355489722,1741203031946,-152.0,0.00010884,3]
[355489723,1741203031955,-424.1993,0.00010888,2]
[355489724,1741203031965,-580.0646,0.00010888,2]
[355489725,1741203031974,-555.4433,0.00010888,2]
[355489726,1741203031984,-966.576,0.00010888,2]
[355489727,1741203031993,-1000.0,0.000109,2]
[355489728,1741203032003,-150.0,0.00010938,2]
[355489729,1741203032012,-371.34495269,0.00010987,2]
[355489730,1741203032021,-745.66,0.00010987,2]
[355489731,1741203032031,-627.69,0.00010987,2]
[355489732,1741203032040,-517.67,0.00010987,2]
[355489733,1741203032049,-1080.91,0.00010987,2]
[355489734,1741203032058,-500.0,0.00010987,2]
[355489735,1741203032068,-1125.77,0.00010987,2]
[355489736,1741203032077,-500.0,0.00010987,2]
[355489737,1741203032087,-500.0,0.00010987,2]
[355489738,1741203032096,-1422.7,0.00010987,2]
[355489739,1741203032106,-810.6,0.00010987,2]
[355489740,1741203032115,-500.0,0.00010987,2]
[355489741,1741203032124,-500.0,0.00010987,2]
[355489742,1741203032133,-500.0,0.00010987,2]
[355489743,1741203032143,-727.91,0.00010987,2]
[355489744,1741203032153,-1179.82,0.00010987,2]
[355489745,1741203032168,-1504.18755086,0.00010987,2]
[355489746,1741203032182,-615.13244914,0.00010987,2]
[355489747,1741203032191,-648.71,0.00010987,2]
[355489748,1741203032208,-862.41,0.00010987,2]
[355489749,1741203032218,-1346.73,0.00010987,2]
[355489750,1741203032228,-8103.94,0.00010987,2]
[355489751,1741203032240,-500.0,0.00010987,2]
[355489752,1741203032251,-892.24,0.00010987,2]
[355489753,1741203032261,-766.67,0.00010987,2]
[355489754,1741203032270,-1880.24,0.00010987,2]
[355489755,1741203032279,-708.87,0.00010987,2]
[355489756,1741203032289,-500.0,0.00010987,2]
[355489757,1741203032298,-553.45,0.00010987,2]
[355489758,1741203032307,-500.0,0.00010988,2]
[355489759,1741203032317,-500.0,0.00010988,2]
[355489760,1741203032326,-500.0,0.00010988,2]
[355489761,1741203032335,-500.0,0.00010988,2]
[355489763,1741203032344,-500.0,0.00010988,2]
[355489765,1741203032354,-704.6,0.00010988,2]
[355489767,1741203032363,-500.0,0.00010988,2]
[355489769,1741203032372,-500.0,0.00010988,2]
[355489771,1741203032382,-500.0,0.00010988,2]
[355489773,1741203032391,-865.59,0.00010988,2]
[355489775,1741203032400,-500.0,0.00010988,2]
[355489777,1741203032409,-500.0,0.00010988,2]
[355489779,1741203032418,-647.28,0.00010988,2]
[355489781,1741203032429,-883.82,0.00010988,2]
[355489783,1741203032438,-291.43,0.00010988,2]
[355489785,1741203032448,-1064.51,0.00010988,2]
[355489787,1741203032457,-540.49,0.00010988,2]
[355489789,1741203032466,-599.9,0.00010988,2]
[355489791,1741203032476,-500.0,0.00010988,2]
[355489793,1741203032485,-631.61,0.00010988,2]
[355489795,1741203032494,-500.0,0.00010988,2]
[355489797,1741203032503,-500.0,0.00010988,2]
[355489799,1741203032512,-532.24,0.00010988,2]
[355489801,1741203032521,-642.83,0.00010988,2]
[355489803,1741203032531,-500.0,0.00010988,2]
[355489805,1741203032539,-505.12,0.00010988,2]
[355489807,1741203032549,-500.0,0.00010988,2]
[355489809,1741203032558,-500.0,0.00010988,2]
[355489811,1741203032567,-500.01,0.00010988,2]
[355489813,1741203032576,-500.0,0.00010988,2]
[355489816,1741203032586,-500.0,0.00010988,2]
[355489818,1741203032595,-500.0,0.00010988,2]
[355489820,1741203032605,-500.0,0.00010988,2]
[355489822,1741203032614,-640.64,0.00010988,2]
[355489823,1741203032624,-585.78,0.00010988,2]
[355489824,1741203032633,-500.0,0.00010988,2]
[355489825,1741203032643,-500.0,0.00010988,2]
[355489826,1741203032652,-710.64,0.00010988,2]
[355489827,1741203032661,-500.0,0.00010988,2]
[355489828,1741203032670,-847.26,0.00010988,2]
[355489829,1741203032680,-500.0,0.00010988,2]
[355489830,1741203032689,-591.22,0.00010988,2]
[355489831,1741203032698,-500.0,0.00010988,2]
[355489832,1741203032707,-500.0,0.00010988,2]
[355489833,1741203032716,-787.44,0.00010988,2]
[355489834,1741203032725,-500.0,0.00010988,2]
[355489835,1741203032735,-534.07,0.00010988,2]
[355489836,1741203032744,-82.32610305,0.00010988,2]
[355489837,1741203032759,-758.30389695,0.00010988,2]
[355489838,1741203032769,-500.0,0.00010988,2]
[355489839,1741203032779,-500.0,0.00010988,2]
[355489840,1741203032788,-700.83,0.00010988,2]
[355489841,1741203032798,-500.0,0.00010988,2]
[355489842,1741203032807,-826.58,0.00010988,2]
[355489843,1741203032817,-500.0,0.00010988,2]
[355489844,1741203032826,-714.61,0.00010988,2]
[355489845,1741203032837,-645.23,0.00010988,2]
[355489846,1741203032847,-500.0,0.00010988,2]
[355489847,1741203032857,-663.6,0.00010988,2]
[355489848,1741203032867,-500.0,0.00010988,2]
[355489849,1741203032878,-181.38443321,0.00010988,2]
[355489850,1741203032889,-799.53526079,0.00010988,2]
[355489851,1741203032898,-500.0,0.00010988,2]
[355489852,1741203032907,-500.0,0.00010988,2]
[355489853,1741203032918,-500.0,0.00010988,2]
[355489854,1741203032928,-159.27928,0.00010988,2]
[355489855,1741203032938,-500.0,0.00010988,2]
[355489856,1741203032947,-500.0,0.00010988,2]
[355489857,1741203032956,-500.0,0.00010988,2]
[355489858,1741203032965,-151.098525,0.00010988,2]
[355489859,1741203032975,-619.88,0.00010988,2]
[355489860,1741203032984,-500.0,0.00010988,2]
[355489861,1741203032993,-559.2,0.00010988,2]
[355489862,1741203033003,-751.6,0.00010988,2]
[355489863,1741203033012,-718.66,0.00010988,2]
[355489864,1741203033022,-500.0,0.00010988,2]
[355489865,1741203033032,-735.892208,0.00010988,2]
[355489866,1741203033041,-497.65472621,0.00010988,2]
[355489867,1741203033053,-2.34527379,0.00010988,2]
[355489868,1741203033063,-856.8,0.00010988,2]
[355489869,1741203033073,-500.0,0.00010988,2]
[355489870,1741203033083,-500.0,0.00010988,2]
[355489871,1741203033093,-333.20278264,0.00010988,2]
[355489872,1741203033114,-475.43721736,0.00010988,2]
[355489873,1741203033124,-500.0,0.00010988,2]
[355489874,1741203033385,-98.50634343,0.00010988,2]
[355489875,1741203033424,-401.49365657,0.00010988,2]
[355489876,1741203033435,-500.0,0.00010988,2]
[355489877,1741203033444,-309.58691383,0.00010988,2]
[355489878,1741203033456,-333.46308617,0.00010988,2]
[355489879,1741203033465,-500.0,0.00010988,2]
[355489880,1741203033475,-688.34,0.00010988,2]
[355489881,1741203033484,-500.0,0.00010988,2]
[355489882,1741203033494,-707.35,0.00010988,2]
[355489883,1741203033503,-848.84,0.00010988,2]
[355489884,1741203033513,-600.71,0.00010988,2]
[355489885,1741203033522,-1064.8,0.00010988,2]
[355489886,1741203033532,-500.0,0.00010988,2]
[355489887,1741203033541,-500.0,0.00010988,2]
[355489888,1741203033551,-919.8,0.00010988,2]
[355489889,1741203033563,-500.0,0.00010988,2]
[355489890,1741203033573,-500.0,0.00010988,2]
[355489891,1741203033583,-645.87,0.00010988,2]
[355489892,1741203033592,-500.0,0.00010988,2]
[355489893,1741203033602,-500.0,0.00010988,2]
[355489894,1741203033612,-539.8205699,0.00010988,2]
[355489895,1741203033623,-840.49,0.00010988,2]
[355489896,1741203033632,-792.99,0.00010988,2]
[355489897,1741203033642,-659.63,0.00010988,2]
[355489898,1741203033652,-832.36,0.00010988,2]
[355489899,1741203033662,-500.0,0.00010988,2]
[355489900,1741203033672,-500.0,0.00010988,2]
[355489901,1741203033681,-741.3,0.00010988,2]
[355489902,1741203033691,-500.0,0.00010988,2]
[355489903,1741203033700,-500.0,0.00010988,2]
[355489904,1741203033710,-500.0,0.00010988,2]
[355489905,1741203033719,-935.0,0.00010988,2]
[355489906,1741203033728,-500.0,0.00010988,2]
[355489907,1741203033738,-500.0,0.00010988,2]
[355489908,1741203033747,-1194.79,0.00010988,2]
[355489909,1741203033756,-670.33,0.00010988,2]
[355489910,1741203033766,-911.05,0.00010988,2]
[355489911,1741203033775,-577.04,0.00010988,2]
[355489912,1741203033785,-554.73,0.00010988,2]
[355489913,1741203033794,-519.88,0.00010988,2]
[355489914,1741203033803,-6130.35,0.00010988,2]
[355489915,1741203033813,-2410.35,0.00010988,2]
[355489916,1741203033822,-500.0,0.00010988,2]
[355489917,1741203033831,-790.6,0.00010988,2]
[355489918,1741203033842,-1394.37,0.00010988,2]
[355489919,1741203033851,-618.6,0.00010988,2]
[355489920,1741203033861,-3916.44,0.00010988,2]
[355489921,1741203033870,-505.06,0.00010988,2]
[355489922,1741203033880,-800.9,0.00010988,2]
[355489923,1741203033890,-1205.74,0.00010988,2]
[355489924,1741203033900,-1258.22,0.00010988,2]
[355489925,1741203033910,-603.44,0.00010988,2]
[355489926,1741203033919,-958.35,0.00010988,2]
[355489927,1741203033929,-500.0,0.00010988,2]
[355489928,1741203033939,-2628.33,0.00010988,2]
[355489929,1741203033948,-534.68,0.00010988,2]
[355489930,1741203033958,-1324.88,0.00010988,2]
[355489931,1741203033967,-1097.32,0.00010988,2]
[355489932,1741203033978,-500.0,0.00010988,2]
[355489933,1741203033988,-1117.56,0.00010988,2]
[355489934,1741203033998,-1989.07,0.00010988,2]
[355489935,1741203034008,-1955.23,0.00010988,2]
[355489936,1741203034018,-913.74,0.00010988,2]
[355489937,1741203034027,-500.0,0.00010988,2]
[355489938,1741203034037,-500.0,0.00010988,2]
[355489939,1741203034048,-1772.33,0.00010988,2]
[355489940,1741203034058,-1034.17,0.00010988,2]
[355489941,1741203034069,-630.33,0.00010988,2]
[355489942,1741203034079,-973.18,0.00010988,2]
[355489943,1741203034090,-505.49,0.00010988,2]
[355489944,1741203034100,-500.0,0.00010988,2]
[355489945,1741203034110,-510.65,0.00010988,2]
[355489946,1741203034120,-3295.71,0.00010988,2]
[355489947,1741203034129,-3831.72,0.00010988,2]
[355489948,1741203034139,-500.0,0.00010988,2]
[355489949,1741203034150,-971.23,0.00010988,2]
[355489950,1741203034164,-3854.26,0.00010988,2]
[355489951,1741203034180,-620.72,0.00010988,2]
[355489952,1741203034190,-1092.06,0.00010988,2]
[355489953,1741203034202,-2461.53,0.00010988,2]
[355489954,1741203034212,-500.0,0.00010988,2]
[355489955,1741203034222,-784.92,0.00010988,2]
[355489956,1741203034232,-500.0,0.00010988,2]
[355489957,1741203034243,-968.55,0.00010988,2]
[355489958,1741203034252,-834.5,0.00010988,2]
[355489959,1741203034262,-3238.19,0.00010988,2]
[355489960,1741203034272,-1116.53,0.00010988,2]
[355489961,1741203034282,-839.11,0.00010988,2]
[355489962,1741203034292,-989.66,0.00010988,2]
[355489963,1741203034301,-707.24,0.00010988,2]
[355489964,1741203034311,-500.0,0.00010988,2]
[355489965,1741203034321,-1229.97,0.00010988,2]
[355489966,1741203034331,-1018.71,0.00010988,2]
[355489967,1741203034341,-345.82,0.00010988,2]
[355489968,1741203034351,-700.75,0.00010988,2]
[355489969,1741203034361,-1227.74,0.00010988,2]
[355489970,1741203034371,-1656.12,0.00010988,2]
[355489971,1741203034381,-1069.82,0.00010988,2]
[355489972,1741203034391,-1642.41,0.00010988,2]
[355489973,1741203034401,-500.0,0.00010988,2]
[355489974,1741203034410,-902.04,0.00010988,2]
[355489975,1741203034420,-1103.5,0.00010988,2]
[355489976,1741203034430,-1297.25,0.00010988,2]
[355489977,1741203034439,-994.41,0.00010988,2]
[355489978,1741203034448,-2117.05,0.00010988,2]
[355489979,1741203034457,-743.79,0.00010988,2]
[355489980,1741203034466,-1079.82,0.00010988,2]
[355489981,1741203034477,-735.97,0.00010988,2]
[355489982,1741203034487,-4146.68,0.00010988,2]
[355489983,1741203034496,-779.55,0.00010988,2]
[355489984,1741203034506,-500.0,0.00010988,2]
[355489985,1741203034515,-1973.76,0.00010988,2]
[355489986,1741203034525,-1450.76,0.00010988,2]
[355489987,1741203034534,-500.0,0.00010988,2]
[355489988,1741203034544,-877.77,0.00010988,2]
[355489989,1741203034554,-793.69,0.00010988,2]
[355489990,1741203034564,-1140.3,0.00010988,2]
[355489991,1741203034573,-926.73,0.00010988,2]
[355489992,1741203034584,-6145.22,0.00010988,2]
[355489993,1741203034594,-797.58,0.00010988,2]
[355489994,1741203034605,-558.53,0.00010988,2]
[355489995,1741203034615,-1058.83,0.00010988,2]
[355489996,1741203034624,-1412.31,0.00010988,2]
[355489997,1741203034633,-7485.28,0.00010988,2]
[355489998,1741203034644,-1711.02,0.00010988,2]
[355489999,1741203034654,-730.78,0.00010988,2]
[355490000,1741203034664,-1087.01,0.00010988,2]
[355490001,1741203034674,-1133.23,0.00010988,2]
[355490002,1741203034683,-500.0,0.00010988,2]
[355490003,1741203034693,-648.01,0.00010988,2]
[355490004,1741203034702,-520.54899485,0.00010988,2]
[355490005,1741203034711,-500.0,0.00010988,2]
[355490006,1741203034720,-500.0,0.00010988,2]
[355490007,1741203034730,-816.4,0.00010988,2]
[355490008,1741203034739,-708.38,0.00010988,2]
[355490009,1741203034749,-573.74,0.00010988,2]
[355490010,1741203034759,-513.98,0.00010988,2]
[355490011,1741203034768,-576.12,0.00010988,2]
[355490012,1741203034777,-500.0,0.00010988,2]
[355490013,1741203034787,-949.38,0.00010988,2]
[355490014,1741203034796,-786.8,0.00010988,2]
[355490015,1741203034806,-500.0,0.00010989,2]
[355490016,1741203034816,-500.0,0.00010989,2]
[355490017,1741203034825,-500.0,0.00010989,2]
[355490018,1741203034835,-500.0,0.00010989,2]
[355490019,1741203034845,-570.9,0.00010989,2]
[355490020,1741203034855,-500.0,0.00010989,2]
[355490021,1741203034864,-500.0,0.00010989,2]
[355490022,1741203034873,-500.0,0.00010989,2]
[355490023,1741203034882,-509.62,0.00010989,2]
[355490024,1741203034892,-500.0,0.00010989,2]
[355490025,1741203034902,-521.57,0.00010989,2]
[355490026,1741203034911,-500.0,0.00010989,2]
[355490027,1741203034921,-1428.74,0.00010989,2]
[355490028,1741203034930,-987.66,0.00010989,2]
[355490029,1741203034940,-500.0,0.00010989,2]
[355490030,1741203034949,-961.98,0.00010989,2]
[355490031,1741203034959,-572.86,0.00010989,2]
[355490032,1741203034967,-883.69,0.00010989,2]
[355490033,1741203034978,-1063.85,0.00010989,2]
[355490034,1741203034988,-500.0,0.00010989,2]
[355490035,1741203034998,-791.67,0.00010989,2]
[355490036,1741203035009,-500.0,0.00010989,2]
[355490037,1741203035018,-528.08,0.00010989,2]
[355490038,1741203035027,-1190.97,0.00010989,2]
[355490039,1741203035037,-915.32,0.00010989,2]
[355490040,1741203035046,-1569.34,0.00010989,2]
[355490041,1741203035055,-612.23,0.00010989,2]
[355490042,1741203035065,-757.86,0.00010989,2]
[355490043,1741203035074,-1638.01,0.00010989,2]
[355490044,1741203035083,-770.57,0.00010989,2]
[355490045,1741203035092,-574.75,0.00010989,2]
[355490046,1741203035102,-1029.13,0.00010989,2]
[355490047,1741203035111,-500.0,0.00010989,2]
[355490048,1741203035120,-500.0,0.00010989,2]
[355490049,1741203035130,-519.34,0.00010989,2]
[355490050,1741203035139,-639.61,0.00010989,2]
[355490051,1741203035149,-1469.04,0.00010989,2]
[355490052,1741203035159,-500.0,0.00010989,2]
[355490053,1741203035170,-368.63080302,0.00010989,2]
[355490054,1741203035180,-500.0,0.00010989,2]
[355490055,1741203035190,-1255.74,0.00010989,2]
[355490056,1741203035202,-500.0,0.00010989,2]
[355490057,1741203035211,-869.12,0.00010989,2]